fUSD/lending_fUSD_20250221
["ID","MTS","AMOUNT","RATE_DAILY","PERIOD"]
[353960776,1740167482866,-769.98,0.00011616,2]
[353960777,1740167482876,-652.38,0.00011616,2]
[353960778,1740167482886,-500.0,0.00011616,2]
[353960779,1740167482896,-569.49,0.00011616,2]
[353960780,1740167482905,-500.0,0.00011616,2]
[353960781,1740167482915,-500.0,0.00011616,2]
[353960782,1740167482924,-778.95,0.00011616,2]
[353960783,1740167482934,-500.0,0.00011616,2]
[353960784,1740167482943,-500.0,0.00011616,2]
[353960785,1740167482954,-1811.38,0.00011616,2]
[353960786,1740167482974,-575.2,0.00011616,2]
[353960787,1740167482983,-982.85,0.00011616,2]
[353960788,1740167482992,-717.22,0.00011616,2]
[353960789,1740167483001,-1375.27,0.00011616,2]
[353960790,1740167483010,-893.56,0.00011616,2]
[353960791,1740167483019,-500.0,0.00011616,2]
[353960792,1740167483028,-809.42,0.00011616,2]
[353960793,1740167483038,-1319.65,0.00011616,2]
[353960794,1740167483047,-500.0,0.00011616,2]
[353960795,1740167483056,-1036.04,0.00011616,2]
[353960796,1740167483065,-1242.28,0.00011616,2]
[353960797,1740167483074,-617.56,0.00011616,2]
[353960798,1740167483083,-500.0,0.00011616,2]
[353960799,1740167483094,-625.0,0.00011616,2]
[353960800,1740167483103,-948.12,0.00011616,2]
[353960801,1740167483112,-500.0,0.00011616,2]
[353960802,1740167483122,-1022.36,0.00011616,2]
[353960803,1740167483131,-854.65,0.00011616,2]
[353960804,1740167483140,-500.0,0.00011616,2]
[353960805,1740167483150,-500.0,0.00011616,2]
[353960806,1740167483159,-926.96,0.00011616,2]
[353960807,1740167483235,-969.71,0.00011616,2]
[353960808,1740167483245,-500.0,0.00011616,2]
[353960809,1740167483254,-810.4,0.00011616,2]
[353960810,1740167483263,-615.07,0.00011616,2]
[353960811,1740167483273,-500.0,0.00011616,2]
[353960812,1740167483282,-1192.04,0.00011616,2]
[353960813,1740167483291,-508.53,0.00011616,2]
[353960814,1740167483300,-672.33,0.00011616,2]
[353960815,1740167483309,-1908.9,0.00011616,2]
[353960816,1740167483318,-1359.44,0.00011616,2]
[353960817,1740167483327,-902.67,0.00011616,2]
[353960818,1740167483337,-1423.88,0.00011616,2]
[353960819,1740167483346,-717.68,0.00011616,2]
[353960820,1740167483355,-1211.55,0.00011616,2]
[353960821,1740167483364,-2188.61,0.00011616,2]
[353960822,1740167483373,-1759.15,0.00011616,2]
[353960823,1740167483382,-697.64,0.00011616,2]
[353960824,1740167483391,-986.02,0.00011616,2]
[353960825,1740167483400,-1662.17,0.00011616,2]
[353960826,1740167483409,-500.0,0.00011616,2]
[353960827,1740167483419,-1297.0,0.00011616,2]
[353960828,1740167483428,-500.0,0.00011616,2]
[353960829,1740167483438,-861.11,0.00011616,2]
[353960830,1740167483447,-925.5,0.00011616,2]
[353960831,1740167483456,-1460.13,0.00011616,2]
[353960832,1740167483467,-596.42,0.00011616,2]
[353960833,1740167483476,-500.0,0.00011616,2]
[353960834,1740167483485,-500.0,0.00011616,2]
[353960835,1740167483495,-500.0,0.00011616,2]
[353960836,1740167483504,-1381.05,0.00011616,2]
[353960837,1740167483514,-707.75,0.00011616,2]
[353960838,1740167483523,-905.98,0.00011616,2]
[353960839,1740167483532,-511.21,0.00011616,2]
[353960840,1740167483542,-500.0,0.00011616,2]
[353960841,1740167483553,-645.45,0.00011616,2]
[353960842,1740167483562,-600.11,0.00011616,2]
[353960843,1740167483572,-1101.61,0.00011616,2]
[353960844,1740167483581,-1349.02,0.00011616,2]
[353960845,1740167483591,-1210.32,0.00011616,2]
[353960846,1740167483600,-599.64,0.00011616,2]
[353960847,1740167483609,-500.0,0.00011616,2]
[353960848,1740167483618,-794.86,0.00011616,2]
[353960849,1740167483628,-901.02,0.00011616,2]
[353960850,1740167483637,-500.0,0.00011616,2]
[353960851,1740167483646,-856.94,0.00011616,2]
[353960852,1740167483655,-500.0,0.00011616,2]
[353960853,1740167483664,-964.92,0.00011616,2]
[353960854,1740167483673,-500.0,0.00011616,2]
[353960855,1740167483682,-1325.37,0.00011616,2]
[353960856,1740167483691,-500.0,0.00011616,2]
[353960857,1740167483700,-1325.36,0.00011616,2]
[353960858,1740167483713,-500.0,0.00011616,2]
[353960859,1740167483722,-591.83639178,0.00011616,2]
[353960860,1740167483731,-500.0,0.00011616,2]
[353960861,1740167483740,-777.44,0.00011616,2]
[353960862,1740167483750,-1387.99,0.00011616,2]
[353960863,1740167483759,-500.0,0.00011616,2]
[353960864,1740167483769,-500.0,0.00011616,2]
[353960865,1740167483778,-500.0,0.00011616,2]
[353960866,1740167483789,-1448.95,0.00011616,2]
[353960867,1740167483799,-500.0,0.00011616,2]
[353960868,1740167483808,-908.66,0.00011616,2]
[353960869,1740167483818,-724.59,0.00011616,2]
[353960870,1740167483827,-857.07,0.00011616,2]
[353960871,1740167483836,-825.21,0.00011616,2]
[353960872,1740167483846,-874.13,0.00011616,2]
[353960873,1740167483856,-500.0,0.00011616,2]
[353960874,1740167483865,-500.0,0.00011616,2]
[353960875,1740167483875,-1679.67,0.00011616,2]
[353960876,1740167483886,-500.0,0.00011616,2]
[353960877,1740167483895,-500.0,0.00011616,2]
[353960878,1740167483905,-500.0,0.00011616,2]
[353960879,1740167483914,-1120.09,0.00011616,2]
[353960880,1740167483924,-684.04,0.00011616,2]
[353960881,1740167483933,-1184.73,0.00011616,2]
[353960882,1740167483943,-934.86,0.00011616,2]
[353960883,1740167483953,-1633.04,0.00011616,2]
[353960884,1740167483969,-2742.63,0.00011616,2]
[353960885,1740167483979,-666.09,0.00011616,2]
[353960886,1740167483989,-814.84,0.00011616,2]
[353960887,1740167483999,-1339.09,0.00011616,2]
[353960888,1740167484009,-1290.16,0.00011616,2]
[353960889,1740167484019,-600.21,0.00011616,2]
[353960890,1740167484029,-566.0,0.00011616,2]
[353960891,1740167484040,-1207.48,0.00011616,2]
[353960892,1740167484049,-1444.01,0.00011616,2]
[353960893,1740167484059,-3450.46,0.00011616,2]
[353960894,1740167484069,-1395.85,0.00011616,2]
[353960895,1740167484079,-500.0,0.00011616,2]
[353960896,1740167484089,-1125.15,0.00011616,2]
[353960897,1740167484098,-500.0,0.00011616,2]
[353960898,1740167484108,-500.0,0.00011616,2]
[353960899,1740167484117,-1047.03,0.00011616,2]
[353960900,1740167484126,-537.84,0.00011616,2]
[353960901,1740167484135,-959.73,0.00011616,2]
[353960902,1740167484145,-500.0,0.00011616,2]
[353960903,1740167484154,-786.56,0.00011616,2]
[353960904,1740167484163,-2785.17,0.00011616,2]
[353960905,1740167484173,-706.89,0.00011616,2]
[353960906,1740167484182,-611.17,0.00011616,2]
[353960907,1740167484193,-500.0,0.00011616,2]
[353960908,1740167484203,-500.0,0.00011616,2]
[353960909,1740167484216,-156.045622,0.00011616,2]
[353960910,1740167484226,-819.59,0.00011616,2]
[353960911,1740167484235,-525.67,0.00011616,2]
[353960912,1740167484244,-1421.65,0.00011616,2]
[353960913,1740167484254,-853.79,0.00011616,2]
[353960914,1740167484263,-1799.84,0.00011616,2]
[353960915,1740167484272,-500.0,0.00011616,2]
[353960916,1740167484282,-500.0,0.00011616,2]
[353960917,1740167484291,-2465.29,0.00011616,2]
[353960918,1740167484301,-3543.95,0.00011616,2]
[353960919,1740167484310,-779.77,0.00011616,2]
[353960920,1740167484319,-382.093165,0.00011616,2]
[353960921,1740167484328,-284.06277591,0.00011616,2]
[353960922,1740167484337,-500.0,0.00011616,2]
[353960923,1740167484346,-1897.92,0.00011616,2]
[353960924,1740167484355,-2898.71,0.00011616,2]
[353960925,1740167484366,-749.44,0.00011616,2]
[353960926,1740167484375,-1425.64,0.00011616,2]
[353960927,1740167484384,-1833.48,0.00011616,2]
[353960928,1740167484395,-639.64,0.00011616,2]
[353960929,1740167484405,-500.0,0.00011616,2]
[353960930,1740167484415,-1283.58,0.00011616,2]
[353960931,1740167484424,-500.0,0.00011616,2]
[353960932,1740167484434,-2412.67,0.00011616,2]
[353960933,1740167484443,-1306.89,0.00011616,2]
[353960934,1740167484452,-500.0,0.00011616,2]
[353960935,1740167484463,-2034.14,0.00011616,2]
[353960936,1740167484472,-500.0,0.00011616,2]
[353960937,1740167484481,-974.92,0.00011616,2]
[353960938,1740167484490,-2076.65,0.00011616,2]
[353960939,1740167484500,-500.0,0.00011616,2]
[353960940,1740167484509,-1574.15,0.00011616,2]
[353960941,1740167484519,-1640.08,0.00011616,2]
[353960942,1740167484529,-500.0,0.00011616,2]
[353960943,1740167484538,-500.0,0.00011616,2]
[353960944,1740167484547,-1453.95,0.00011616,2]
[353960945,1740167484556,-13118.68,0.00011616,2]
[353960946,1740167484565,-1900.25,0.00011616,2]
[353960947,1740167484575,-1683.88,0.00011616,2]
[353960948,1740167484584,-554.2,0.00011616,2]
[353960949,1740167484593,-511.87,0.00011616,2]
[353960950,1740167484602,-2369.7,0.00011616,2]
[353960951,1740167484611,-1211.68,0.00011616,2]
[353960952,1740167484620,-666.84,0.00011616,2]
[353960953,1740167484629,-1282.54,0.00011616,2]
[353960954,1740167484638,-1427.28,0.00011616,2]
[353960955,1740167484647,-1696.55,0.00011616,2]
[353960956,1740167484657,-640.16881855,0.00011616,2]
[353960957,1740167484666,-867.08,0.00011616,2]
[353960958,1740167484675,-2568.42,0.00011616,2]
[353960959,1740167484685,-1911.79,0.00011616,2]
[353960960,1740167484694,-679.07,0.00011616,2]
[353960961,1740167484705,-621.24,0.00011616,2]
[353960962,1740167484718,-747.95,0.00011616,2]
[353960963,1740167484729,-1137.83,0.00011616,2]
[353960964,1740167484739,-2035.76,0.00011616,2]
[353960965,1740167484749,-500.0,0.00011616,2]
[353960966,1740167484759,-1256.62,0.00011616,2]
[353960967,1740167484768,-500.0,0.00011616,2]
[353960968,1740167484778,-718.0,0.00011616,2]
[353960969,1740167484788,-500.0,0.00011616,2]
[353960970,1740167484799,-901.59,0.00011616,2]
[353960971,1740167484808,-2040.15,0.00011616,2]
[353960972,1740167484817,-1477.74,0.00011616,2]
[353960973,1740167484827,-500.0,0.00011616,2]
[353960974,1740167484836,-757.34,0.00011616,2]
[353960975,1740167484847,-2164.87,0.00011616,2]
[353960976,1740167484856,-1659.4,0.00011616,2]
[353960977,1740167484865,-1859.7,0.00011616,2]
[353960978,1740167484875,-2453.21,0.00011616,2]
[353960979,1740167484884,-561.26,0.00011616,2]
[353960980,1740167484893,-1850.75,0.00011616,2]
[353960981,1740167484903,-500.0,0.00011616,2]
[353960982,1740167484912,-500.0,0.00011616,2]
[353960983,1740167484921,-500.0,0.00011616,2]
[353960984,1740167484930,-601.04,0.00011616,2]
[353960985,1740167484940,-822.39,0.00011616,2]
[353960986,1740167484949,-734.9,0.00011616,2]
[353960987,1740167484962,-4625.02,0.00011616,2]
[353960988,1740167484971,-1777.87,0.00011616,2]
[353960989,1740167484980,-1540.98,0.00011616,2]
[353960990,1740167484990,-500.0,0.00011616,2]
[353960991,1740167484999,-546.46,0.00011616,2]
[353960992,1740167485010,-500.0,0.00011616,2]
[353960993,1740167485020,-500.0,0.00011616,2]
[353960994,1740167485029,-500.0,0.00011616,2]
[353960995,1740167485039,-1630.09,0.00011616,2]
[353960996,1740167485048,-1542.1,0.00011616,2]
[353960997,1740167485058,-500.0,0.00011616,2]
[353960998,1740167485068,-547.15,0.00011616,2]
[353960999,1740167485078,-2224.84,0.00011616,2]
[353961000,1740167485088,-899.67,0.00011616,2]
[353961001,1740167485098,-500.0,0.00011616,2]
[353961002,1740167485107,-943.17,0.00011616,2]
[353961003,1740167485116,-807.22,0.00011616,2]
[353961004,1740167485126,-1405.51,0.00011616,2]
[353961005,1740167485135,-1451.47,0.00011616,2]
[353961006,1740167485144,-773.56,0.00011616,2]
[353961007,1740167485154,-863.09,0.00011616,2]
[353961008,1740167485164,-1030.82,0.00011616,2]
[353961009,1740167485173,-1414.2,0.00011616,2]
[353961010,1740167485184,-2629.27,0.00011616,2]
[353961011,1740167485195,-500.00959504,0.00011616,2]
[353961012,1740167485205,-1956.95,0.00011616,2]
[353961013,1740167485220,-933.0,0.00011616,2]
[353961014,1740167485231,-591.21,0.00011616,2]
[353961015,1740167485240,-572.93,0.00011616,2]
[353961016,1740167485250,-500.0,0.00011616,2]
[353961017,1740167485259,-500.0,0.00011616,2]
[353961018,1740167485269,-500.0,0.00011616,2]
[353961019,1740167485279,-1071.61,0.00011616,2]
[353961020,1740167485289,-1979.81,0.00011616,2]
[353961021,1740167485299,-2806.52,0.00011616,2]
[353961022,1740167485308,-500.0,0.00011616,2]
[353961023,1740167485318,-1063.77,0.00011616,2]
[353961024,1740167485328,-500.0,0.00011616,2]
[353961025,1740167485337,-511.32,0.00011616,2]
[353961026,1740167485347,-1836.76,0.00011616,2]
[353961027,1740167485356,-500.0,0.00011616,2]
[353961028,1740167485366,-523.07,0.00011616,2]
[353961029,1740167485376,-500.0,0.00011616,2]
[353961030,1740167485386,-1918.18,0.00011616,2]
[353961031,1740167485395,-500.0,0.00011616,2]
[353961032,1740167485405,-1627.61,0.00011616,2]
[353961033,1740167485415,-500.0,0.00011616,2]
[353961034,1740167485425,-546.11,0.00011616,2]
[353961035,1740167485434,-645.43,0.00011616,2]
[353961036,1740167485443,-1484.14,0.00011616,2]
[353961037,1740167485453,-500.0,0.00011616,2]
[353961038,1740167485466,-2455.95,0.00011616,2]
[353961039,1740167485476,-500.0,0.00011616,2]
[353961040,1740167485485,-667.63,0.00011616,2]
[353961041,1740167485495,-2372.7,0.00011616,2]
[353961042,1740167485504,-626.59,0.00011616,2]
[353961043,1740167485513,-908.08,0.00011616,2]
[353961044,1740167485522,-500.0,0.00011616,2]
[353961045,1740167485531,-500.0,0.00011616,2]
[353961046,1740167485540,-911.32,0.00011616,2]
[353961047,1740167485549,-5546.19,0.00011616,2]
[353961048,1740167485559,-1353.06,0.00011616,2]
[353961049,1740167485569,-1549.06,0.00011616,2]
[353961050,1740167485579,-1073.32,0.00011616,2]
[353961051,1740167485589,-1586.49,0.00011616,2]
[353961052,1740167485599,-4218.35,0.00011616,2]
[353961053,1740167485609,-1546.99,0.00011616,2]
[353961054,1740167485619,-560.32,0.00011616,2]
[353961055,1740167485629,-1702.81,0.00011616,2]
[353961056,1740167485638,-500.0,0.00011616,2]
[353961057,1740167485647,-1764.24,0.00011616,2]
[353961058,1740167485658,-1149.42,0.00011616,2]
[353961059,1740167485668,-735.06,0.00011616,2]
[353961060,1740167485678,-1183.25,0.00011616,2]
[353961061,1740167485687,-500.0,0.00011616,2]
[353961062,1740167485697,-636.23,0.00011616,2]
[353961063,1740167485707,-500.0,0.00011616,2]
[353961064,1740167485721,-601.47,0.00011616,2]
[353961065,1740167485731,-500.0,0.00011616,2]
[353961066,1740167485741,-500.0,0.00011616,2]
[353961067,1740167485753,-2271.32,0.00011616,2]
[353961068,1740167485763,-500.0,0.00011616,2]
[353961069,1740167485774,-876.43,0.00011616,2]
[353961070,1740167485786,-541.45,0.00011616,2]
[353961071,1740167485796,-2152.05,0.00011616,2]
[353961072,1740167485809,-916.64,0.00011616,2]
[353961073,1740167485819,-1511.65,0.00011616,2]
[353961074,1740167485829,-553.9,0.00011616,2]
[353961075,1740167485838,-500.0,0.00011616,2]
[353961076,1740167485847,-3165.99,0.00011616,2]
[353961077,1740167485857,-500.0,0.00011616,2]
[353961078,1740167485867,-805.35,0.00011616,2]
[353961079,1740167485877,-500.0,0.00011616,2]
[353961080,1740167485888,-517.12,0.00011616,2]
[353961081,1740167485898,-714.44,0.00011616,2]
[353961082,1740167485908,-2840.89,0.00011616,2]
[353961083,1740167485918,-500.0,0.00011616,2]
[353961084,1740167485928,-2330.01,0.00011616,2]
[353961085,1740167485937,-1123.03,0.00011616,2]
[353961086,1740167485947,-1483.29,0.00011616,2]
[353961087,1740167485957,-706.1,0.00011616,2]
[353961088,1740167485970,-500.0,0.00011616,2]
[353961089,1740167485980,-500.0,0.00011616,2]
[353961090,1740167485989,-500.0,0.00011616,2]
[353961091,1740167486000,-500.0,0.00011616,2]
[353961092,1740167486011,-1141.98,0.00011616,2]
[353961093,1740167486021,-762.79,0.00011616,2]
[353961094,1740167486031,-1041.84,0.00011616,2]
[353961095,1740167486042,-1531.08,0.00011616,2]
[353961096,1740167486054,-1281.67,0.00011616,2]
[353961097,1740167486064,-555.85,0.00011616,2]
[353961098,1740167486076,-521.28,0.00011616,2]
[353961099,1740167486086,-1097.81,0.00011616,2]
[353961100,1740167486095,-1217.74,0.00011616,2]
[353961101,1740167486105,-1719.50181538,0.00011662,2]
[353961102,1740167486116,-1371.14030773,0.00011662,2]
[353961103,1740167486127,-500.0,0.00011697,2]
[353961104,1740167486137,-500.0,0.00011697,2]
[353961105,1740167486149,-500.0,0.00011697,2]
[353961106,1740167486159,-6985.66189221,0.00011698,2]
[353961107,1740167486169,-505.10673314,0.00011698,2]
[353961108,1740167486178,-500.0,0.00011698,2]
[353961109,1740167486189,-575.69,0.00011698,2]
[353961110,1740167486199,-500.0,0.00011698,2]
[353961111,1740167486210,-500.0,0.00011698,2]
[353961112,1740167486221,-500.0,0.00011698,2]
[353961113,1740167486232,-681.16,0.00011698,2]
[353961114,1740167486242,-817.79,0.00011698,2]
[353961115,1740167486252,-151.0,0.00011698,2]
[353961116,1740167486263,-723.6,0.00011698,2]
[353961117,1740167486273,-1031.25,0.00011698,2]
[353961118,1740167486283,-687.99,0.00011698,2]
[353961119,1740167486293,-500.0,0.00011698,2]
[353961120,1740167486303,-500.0,0.00011698,2]
[353961121,1740167486313,-791.84,0.00011698,2]
[353961122,1740167486322,-500.0,0.00011698,2]
[353961123,1740167486331,-643.32,0.00011698,2]
[353961124,1740167486340,-758.78,0.00011698,2]
[353961125,1740167486350,-582.11,0.00011698,2]
[353961126,1740167486359,-500.0,0.00011698,2]
[353961127,1740167486368,-757.52,0.00011698,2]
[353961128,1740167486377,-500.0,0.00011698,2]
[353961129,1740167486386,-500.0,0.00011698,2]
[353961130,1740167486395,-500.0,0.00011698,2]
[353961131,1740167486403,-500.0,0.00011698,2]
[353961132,1740167486414,-555.11,0.00011698,2]
[353961133,1740167486423,-730.45,0.00011698,2]
[353961134,1740167486432,-700.04,0.00011698,2]
[353961135,1740167486443,-500.0,0.00011698,2]
[353961136,1740167486453,-644.32,0.00011698,2]
[353961137,1740167486465,-639.37,0.00011698,2]
[353961138,1740167486475,-500.0,0.00011698,2]
[353961139,1740167486485,-500.0,0.00011698,2]
[353961140,1740167486495,-500.0,0.00011698,2]
[353961141,1740167486505,-831.04,0.00011698,2]
[353961142,1740167486514,-392.68244991,0.00011698,2]
[353961143,1740167486524,-515.07,0.00011698,2]
[353961144,1740167486535,-625.71,0.00011698,2]
[353961145,1740167486545,-848.84,0.00011698,2]
[353961146,1740167486554,-822.17,0.00011698,2]
[353961147,1740167486564,-745.81,0.00011698,2]
[353961148,1740167486573,-500.0,0.00011698,2]
[353961149,1740167486583,-500.0,0.00011698,2]
[353961150,1740167486592,-919.32,0.00011698,2]
[353961151,1740167486602,-500.0,0.00011698,2]
[353961152,1740167486612,-500.0,0.00011698,2]
[353961153,1740167486621,-500.0,0.00011698,2]
[353961154,1740167486631,-687.5,0.00011698,2]
[353961155,1740167486641,-500.0,0.00011698,2]
[353961156,1740167486650,-500.0,0.00011698,2]
[353961157,1740167486660,-500.0,0.00011698,2]
[353961158,1740167486670,-500.0,0.00011698,2]
[353961159,1740167486680,-500.0,0.00011698,2]
[353961160,1740167486690,-740.68,0.00011698,2]
[353961161,1740167486700,-500.0,0.00011698,2]
[353961162,1740167486713,-905.88,0.00011698,2]
[353961163,1740167486726,-500.0,0.00011698,2]
[353961164,1740167486736,-1098.49,0.00011698,2]
[353961165,1740167486746,-500.0,0.00011698,2]
[353961166,1740167486755,-505.58232135,0.00011698,2]
[353961167,1740167486765,-500.0,0.00011698,2]
[353961168,1740167486776,-500.0,0.00011698,2]
[353961169,1740167486786,-857.44,0.00011698,2]
[353961170,1740167486796,-809.24,0.00011698,2]
[353961171,1740167486807,-500.0,0.00011698,2]
[353961172,1740167486817,-1331.51,0.00011698,2]
[353961173,1740167486828,-754.01,0.00011698,2]
[353961174,1740167486838,-542.87,0.00011698,2]
[353961175,1740167486848,-500.0,0.00011698,2]
[353961176,1740167486858,-1013.68,0.00011698,2]
[353961177,1740167486869,-953.54,0.00011698,2]
[353961178,1740167486879,-750.4,0.00011698,2]
[353961179,1740167486889,-687.42,0.00011698,2]
[353961180,1740167486900,-516.15188994,0.00011698,2]
[353961181,1740167486910,-738.46,0.00011698,2]
[353961182,1740167486921,-1329.27,0.00011698,2]
[353961183,1740167486931,-1176.97,0.00011698,2]
[353961184,1740167486940,-923.81,0.00011698,2]
[353961185,1740167486951,-571.1,0.00011698,2]
[353961186,1740167486963,-615.92,0.00011698,2]
[353961187,1740167486973,-519.71047301,0.00011698,2]
[353961188,1740167486983,-500.0,0.00011698,2]
[353961189,1740167486993,-1145.31,0.00011698,2]
[353961190,1740167487003,-500.0,0.00011698,2]
[353961191,1740167487013,-524.1,0.00011698,2]
[353961192,1740167487023,-500.0,0.00011698,2]
[353961193,1740167487034,-680.76,0.00011698,2]
[353961194,1740167487044,-799.15,0.00011698,2]
[353961195,1740167487054,-1285.44,0.00011698,2]
[353961196,1740167487064,-1586.6,0.00011698,2]
[353961197,1740167487074,-514.98,0.00011698,2]
[353961198,1740167487084,-626.99,0.00011698,2]
[353961199,1740167487093,-687.0,0.00011698,2]
[353961200,1740167487103,-763.06,0.00011698,2]
[353961201,1740167487113,-500.0,0.00011698,2]
[353961202,1740167487123,-836.24,0.00011698,2]
[353961203,1740167487134,-500.0,0.00011698,2]
[353961204,1740167487144,-741.66,0.00011698,2]
[353961205,1740167487154,-976.83,0.00011698,2]
[353961206,1740167487164,-500.0,0.00011698,2]
[353961207,1740167487174,-1826.83,0.00011698,2]
[353961208,1740167487195,-1648.87,0.00011698,2]
[353961209,1740167487206,-822.42,0.00011698,2]
[353961210,1740167487220,-500.0,0.00011698,2]
[353961211,1740167487231,-1061.87,0.00011698,2]
[353961212,1740167487243,-1122.92,0.00011698,2]
[353961213,1740167487254,-818.95,0.00011698,2]
[353961214,1740167487265,-769.98,0.00011698,2]
[353961215,1740167487276,-652.38,0.00011698,2]
[353961216,1740167487286,-500.0,0.00011698,2]
[353961217,1740167487297,-569.49,0.00011698,2]
[353961218,1740167487308,-500.0,0.00011698,2]
[353961219,1740167487318,-500.0,0.00011698,2]
[353961220,1740167487329,-778.95,0.00011698,2]
[353961221,1740167487340,-500.0,0.00011698,2]
[353961222,1740167487350,-500.0,0.00011698,2]
[353961223,1740167487360,-1811.38,0.00011698,2]
[353961224,1740167487371,-575.2,0.00011698,2]
[353961225,1740167487382,-982.85,0.00011698,2]
[353961226,1740167487392,-717.22,0.00011698,2]
[353961227,1740167487402,-1375.27,0.00011698,2]
[353961228,1740167487412,-893.56,0.00011698,2]
[353961229,1740167487423,-500.0,0.00011698,2]
[353961230,1740167487434,-809.42,0.00011698,2]
[353961231,1740167487445,-1319.65,0.00011698,2]
[353961232,1740167487455,-500.0,0.00011698,2]
[353961233,1740167487468,-1036.04,0.00011698,2]
[353961234,1740167487478,-1242.28,0.00011698,2]
[353961235,1740167487489,-617.56,0.00011698,2]
[353961236,1740167487500,-500.0,0.00011698,2]
[353961237,1740167487510,-625.0,0.00011698,2]
[353961238,1740167487521,-948.12,0.00011698,2]
[353961239,1740167487531,-500.0,0.00011698,2]
[353961240,1740167487542,-1022.36,0.00011698,2]
[353961241,1740167487552,-854.65,0.00011698,2]
[353961242,1740167487562,-500.0,0.00011698,2]
[353961243,1740167487573,-500.0,0.00011698,2]
[353961244,1740167487584,-926.96,0.00011698,2]
[353961245,1740167487594,-969.71,0.00011698,2]
[353961246,1740167487604,-500.0,0.00011698,2]
[353961247,1740167487615,-810.4,0.00011698,2]
[353961248,1740167487625,-615.07,0.00011698,2]
[353961249,1740167487635,-500.0,0.00011698,2]
[353961250,1740167487646,-1192.04,0.00011698,2]
[353961251,1740167487656,-508.53,0.00011698,2]
[353961252,1740167487667,-672.33,0.00011698,2]
[353961253,1740167487677,-1908.9,0.00011698,2]
[353961254,1740167487687,-1359.44,0.00011698,2]
[353961255,1740167487698,-902.67,0.00011698,2]
[353961256,1740167487714,-1423.88,0.00011698,2]
[353961257,1740167487725,-717.68,0.00011698,2]
[353961258,1740167487735,-1211.55,0.00011698,2]
[353961259,1740167487745,-2188.61,0.00011698,2]
[353961260,1740167487756,-1759.15,0.00011698,2]
[353961261,1740167487767,-697.64,0.00011698,2]
[353961262,1740167487778,-986.02,0.00011698,2]
[353961263,1740167487789,-1662.17,0.00011698,2]
[353961264,1740167487801,-500.0,0.00011698,2]
[353961265,1740167487812,-1297.0,0.00011698,2]
[353961266,1740167487823,-500.0,0.00011698,2]
[353961267,1740167487834,-861.11,0.00011698,2]
[353961268,1740167487844,-925.5,0.00011698,2]
[353961269,1740167487855,-1460.13,0.00011698,2]
[353961270,1740167487865,-596.42,0.00011698,2]
[353961271,1740167487876,-500.0,0.00011698,2]
[353961272,1740167487887,-500.0,0.00011698,2]
[353961273,1740167487897,-500.0,0.00011698,2]
[353961274,1740167487907,-1381.05,0.00011698,2]
[353961275,1740167487918,-707.75,0.00011698,2]